[Event "*** Titled Tuesday Blitz"]
[Site "Chess.com"]
[Date "2020.05.05"]
[Round "5"]
[White "Grischuk"]
[Black "Maybe00"]
[Result "1-0"]
[WhiteElo "3122"]
[BlackElo "2811"]
[TimeControl "180+1"]
[EndTime "10:58:23 PDT"]
[Termination "Grischuk won by resignation"]

1. Nf3 {[%clk 0:03:00.9]} 1... d5 {[%clk 0:02:58.9]} 2. g3 {[%clk 0:03:01]} 2...
c6 {[%clk 0:02:57.7]} 3. Bg2 {[%clk 0:03:00.7]} 3... Bg4 {[%clk 0:02:58.3]} 4.
O-O {[%clk 0:02:56.2]} 4... e6 {[%clk 0:02:57.3]} 5. c4 {[%clk 0:02:55.8]} 5...
Nf6 {[%clk 0:02:56.2]} 6. d4 {[%clk 0:02:55.7]} 6... Nbd7 {[%clk 0:02:55.1]} 7.
cxd5 {[%clk 0:02:55.8]} 7... exd5 {[%clk 0:02:55.7]} 8. Nc3 {[%clk 0:02:55.8]}
8... Be7 {[%clk 0:02:54.6]} 9. Ng5 {[%clk 0:02:51.6]} 9... h6 {[%clk 0:02:46.4]}
10. Nh3 {[%clk 0:02:51.4]} 10... O-O {[%clk 0:02:44.6]} 11. f3 {[%clk
0:02:51.5]} 11... Bf5 {[%clk 0:02:40.1]} 12. e4 {[%clk 0:02:21.3]} 12... dxe4
{[%clk 0:02:39.1]} 13. fxe4 {[%clk 0:02:22.2]} 13... Bg4 {[%clk 0:02:39.2]} 14.
Qd2 {[%clk 0:02:22.8]} 14... Nb6 {[%clk 0:02:32.5]} 15. Nf4 {[%clk 0:02:13.4]}
15... Nh5 {[%clk 0:02:28.5]} 16. Qf2 {[%clk 0:02:01.8]} 16... Nxf4 {[%clk
0:02:24.7]} 17. Bxf4 {[%clk 0:02:02.7]} 17... Qd7 {[%clk 0:02:21.8]} 18. b3
{[%clk 0:01:50.1]} 18... Bh3 {[%clk 0:02:19.7]} 19. a4 {[%clk 0:01:33.8]} 19...
Bxg2 {[%clk 0:02:18.2]} 20. Kxg2 {[%clk 0:01:33.6]} 20... Rad8 {[%clk
0:01:47.2]} 21. Rad1 {[%clk 0:01:27.3]} 21... Bb4 {[%clk 0:01:41.5]} 22. Na2
{[%clk 0:01:14.8]} 22... Bd6 {[%clk 0:01:41.1]} 23. a5 {[%clk 0:01:09.8]} 23...
Nc8 {[%clk 0:01:35.1]} 24. Be3 {[%clk 0:00:37.8]} 24... Qe6 {[%clk 0:01:30.1]}
25. e5 {[%clk 0:00:34]} 25... Bc7 {[%clk 0:01:26.5]} 26. b4 {[%clk 0:00:32.5]}
26... Ne7 {[%clk 0:01:24.9]} 27. Nc3 {[%clk 0:00:32]} 27... Nd5 {[%clk
0:01:21.4]} 28. Ne4 {[%clk 0:00:27.8]} 28... b6 {[%clk 0:01:19.5]} 29. Bd2
{[%clk 0:00:24.8]} 29... f5 {[%clk 0:01:13.7]} 30. Nc3 {[%clk 0:00:23.3]} 30...
Nxc3 {[%clk 0:01:09.3]} 31. Bxc3 {[%clk 0:00:23.1]} 31... Rd5 {[%clk 0:01:01.1]}
32. Qf3 {[%clk 0:00:15.6]} 32... bxa5 {[%clk 0:00:56.2]} 33. bxa5 {[%clk
0:00:16.5]} 33... Bxa5 {[%clk 0:00:56.2]} 34. Bxa5 {[%clk 0:00:13.9]} 34... Rxa5
{[%clk 0:00:57.1]} 35. Rc1 {[%clk 0:00:14.8]} 35... Rd5 {[%clk 0:00:52.4]} 36.
Rc4 {[%clk 0:00:14.8]} 36... Rfd8 {[%clk 0:00:51]} 37. Qxf5 {[%clk 0:00:13.5]}
37... Qxf5 {[%clk 0:00:51.3]} 38. Rxf5 {[%clk 0:00:14.4]} 38... Rxd4 {[%clk
0:00:51.6]} 39. Rxc6 {[%clk 0:00:15]} 39... Rd2+ {[%clk 0:00:49]} 40. Rf2 {[%clk
0:00:13.4]} 40... Rxf2+ {[%clk 0:00:49.2]} 41. Kxf2 {[%clk 0:00:14]} 41... Rd2+
{[%clk 0:00:49.6]} 42. Kf3 {[%clk 0:00:12.3]} 42... Kf7 {[%clk 0:00:46.8]} 43.
h4 {[%clk 0:00:10.7]} 43... a5 {[%clk 0:00:44.1]} 44. Ra6 {[%clk 0:00:09.3]}
44... Ra2 {[%clk 0:00:43.6]} 45. h5 {[%clk 0:00:07.8]} 45... a4 {[%clk
0:00:43.3]} 46. Ke4 {[%clk 0:00:06.8]} 46... a3 {[%clk 0:00:42.6]} 47. Ra7+
{[%clk 0:00:05.2]} 47... Kg8 {[%clk 0:00:39.9]} 48. Kf5 {[%clk 0:00:05]} 48...
Kh7 {[%clk 0:00:40.1]} 49. Ke6 {[%clk 0:00:04.9]} 49... Ra1 {[%clk 0:00:40]} 50.
Ke7 {[%clk 0:00:05]} 50... Ra2 {[%clk 0:00:18.4]} 51. e6 {[%clk 0:00:04.7]}
51... Ra1 {[%clk 0:00:18.6]} 52. g4 {[%clk 0:00:04.1]} 52... Ra2 {[%clk
0:00:18.7]} 53. Rd7 {[%clk 0:00:03.4]} 53... Ra1 {[%clk 0:00:17.8]} 54. Rd3
{[%clk 0:00:03.2]} 54... a2 {[%clk 0:00:12.3]} 55. Rd2 {[%clk 0:00:03.2]} 55...
g6 {[%clk 0:00:10.7]} 56. Kd7 {[%clk 0:00:03.2]} 56... Rb1 {[%clk 0:00:07.1]}
57. Rxa2 {[%clk 0:00:02.8]} 57... Rb7+ {[%clk 0:00:06.7]} 58. Kc6 {[%clk
0:00:03.4]} 58... Rg7 {[%clk 0:00:06.9]} 59. Kd6 {[%clk 0:00:03.2]} 59... gxh5
{[%clk 0:00:07.4]} 60. gxh5 {[%clk 0:00:04.1]} 60... Rg1 {[%clk 0:00:07.6]} 61.
e7 {[%clk 0:00:04.4]} 61... Rd1+ {[%clk 0:00:07.8]} 62. Ke6 {[%clk 0:00:05]}
62... Re1+ {[%clk 0:00:08.3]} 63. Kf7 {[%clk 0:00:05.5]} 63... Rf1+ {[%clk
0:00:08.8]} 64. Ke8 {[%clk 0:00:06]} 64... Kg7 {[%clk 0:00:08.3]} 65. Rd2 {[%clk
0:00:06.2]} 65... Kf6 {[%clk 0:00:07.9]} 66. Kd7 {[%clk 0:00:06]} 1-0

[Event "*** Titled Tuesday Blitz"]
[Site "Chess.com"]
[Date "2020.05.05"]
[Round "5"]
[White "vanea_03"]
[Black "Konavets"]
[Result "1/2-1/2"]
[WhiteElo "2643"]
[BlackElo "2926"]
[TimeControl "180+1"]
[EndTime "10:58:24 PDT"]
[Termination "Game drawn by repetition"]

1. d4 {[%clk 0:03:00.9]} 1... Nf6 {[%clk 0:02:59.8]} 2. c4 {[%clk 0:03:01.4]}
2... e6 {[%clk 0:02:59.2]} 3. g3 {[%clk 0:03:01.4]} 3... d5 {[%clk 0:02:58.6]}
4. Bg2 {[%clk 0:03:01.9]} 4... dxc4 {[%clk 0:02:59.3]} 5. Nf3 {[%clk 0:03:02.1]}
5... a6 {[%clk 0:03:00.1]} 6. O-O {[%clk 0:03:01.5]} 6... Nc6 {[%clk 0:03:00.5]}
7. e3 {[%clk 0:03:01.6]} 7... Bd7 {[%clk 0:03:00.7]} 8. Qe2 {[%clk 0:03:01.2]}
8... b5 {[%clk 0:03:00.6]} 9. b3 {[%clk 0:03:01.2]} 9... cxb3 {[%clk 0:03:00.9]}
10. axb3 {[%clk 0:03:02.1]} 10... Be7 {[%clk 0:03:01]} 11. Bb2 {[%clk
0:03:00.9]} 11... O-O {[%clk 0:03:00.5]} 12. Nbd2 {[%clk 0:03:00.6]} 12... Nb4
{[%clk 0:02:58.5]} 13. Rfc1 {[%clk 0:03:00.2]} 13... Rb8 {[%clk 0:02:58.2]} 14.
Ne5 {[%clk 0:02:58.6]} 14... Rb6 {[%clk 0:02:58.3]} 15. Bc3 {[%clk 0:02:38.5]}
15... Nfd5 {[%clk 0:02:57.5]} 16. Bb2 {[%clk 0:02:35.3]} 16... Bc8 {[%clk
0:02:48]} 17. Ne4 {[%clk 0:02:23.8]} 17... c6 {[%clk 0:02:34.1]} 18. Nc5 {[%clk
0:02:21.3]} 18... f6 {[%clk 0:02:26]} 19. Nf3 {[%clk 0:02:18.1]} 19... f5 {[%clk
0:02:23.7]} 20. Ne5 {[%clk 0:02:17.4]} 20... Bd6 {[%clk 0:02:20.2]} 21. Ned3
{[%clk 0:01:58]} 21... Nxd3 {[%clk 0:02:18.8]} 22. Nxd3 {[%clk 0:01:58.9]} 22...
Qe7 {[%clk 0:02:09.3]} 23. Rc2 {[%clk 0:01:57.1]} 23... Bb7 {[%clk 0:02:02.7]}
24. Nc5 {[%clk 0:01:50]} 24... Nb4 {[%clk 0:02:01.2]} 25. Rcc1 {[%clk
0:01:47.1]} 25... Bc8 {[%clk 0:01:58.5]} 26. Bc3 {[%clk 0:01:41.5]} 26... Nd5
{[%clk 0:01:58.6]} 27. Ba5 {[%clk 0:01:38.7]} 27... Rb8 {[%clk 0:01:58.5]} 28.
Nd3 {[%clk 0:01:36.3]} 28... b4 {[%clk 0:01:50.3]} 29. Rxc6 {[%clk 0:01:19.7]}
29... Rb5 {[%clk 0:01:50.4]} 30. Bxd5 {[%clk 0:01:12.9]} 30... exd5 {[%clk
0:01:49.4]} 31. Bb6 {[%clk 0:01:04.5]} 31... f4 {[%clk 0:01:33.2]} 32. Rxd6
{[%clk 0:01:04.7]} 32... f3 {[%clk 0:01:17.8]} 33. Qf1 {[%clk 0:01:03.1]} 33...
Qxd6 {[%clk 0:01:17.6]} 34. Bc5 {[%clk 0:01:03.6]} 34... Rxc5 {[%clk 0:01:08.4]}
35. dxc5 {[%clk 0:01:04.5]} 35... Qc7 {[%clk 0:01:00.7]} 36. Rc1 {[%clk
0:00:55.7]} 36... a5 {[%clk 0:01:00.7]} 37. Nf4 {[%clk 0:00:56.1]} 37... Qc6
{[%clk 0:00:57.4]} 38. Qd3 {[%clk 0:00:55.7]} 38... Bb7 {[%clk 0:00:52]} 39. h4
{[%clk 0:00:50.4]} 39... Qd7 {[%clk 0:00:43.8]} 40. Qd4 {[%clk 0:00:42.4]} 40...
Bc6 {[%clk 0:00:43.8]} 41. Ra1 {[%clk 0:00:41.8]} 41... Ra8 {[%clk 0:00:42.8]}
42. Qe5 {[%clk 0:00:38.7]} 42... a4 {[%clk 0:00:37.8]} 43. bxa4 {[%clk
0:00:37.6]} 43... b3 {[%clk 0:00:36.4]} 44. a5 {[%clk 0:00:34.4]} 44... Qb7
{[%clk 0:00:28.1]} 45. h5 {[%clk 0:00:29]} 45... Re8 {[%clk 0:00:25]} 46. Qb2
{[%clk 0:00:25.7]} 46... Qb4 {[%clk 0:00:25.1]} 47. h6 {[%clk 0:00:22.1]} 47...
d4 {[%clk 0:00:22.7]} 48. exd4 {[%clk 0:00:15.2]} 48... Re1+ {[%clk 0:00:17.3]}
49. Rxe1 {[%clk 0:00:15.8]} 49... Qxe1+ {[%clk 0:00:17.6]} 50. Kh2 {[%clk
0:00:16.6]} 50... Bb5 {[%clk 0:00:11.5]} 51. d5 {[%clk 0:00:13.8]} 51... gxh6
{[%clk 0:00:09.7]} 52. Nh5 {[%clk 0:00:12.5]} 52... Kf7 {[%clk 0:00:02.8]} 53.
Qg7+ {[%clk 0:00:09.7]} 53... Ke8 {[%clk 0:00:03.2]} 54. Nf6+ {[%clk 0:00:09.7]}
54... Kd8 {[%clk 0:00:03.8]} 55. Qf8+ {[%clk 0:00:09.9]} 55... Kc7 {[%clk
0:00:04.3]} 56. Qd6+ {[%clk 0:00:09.3]} 56... Kb7 {[%clk 0:00:03.7]} 57. c6+
{[%clk 0:00:07.9]} 57... Ka6 {[%clk 0:00:03.3]} 58. c7+ {[%clk 0:00:06.6]} 58...
Kxa5 {[%clk 0:00:03.8]} 59. Qa3+ {[%clk 0:00:03.3]} 59... Kb6 {[%clk 0:00:04.2]}
60. Qd6+ {[%clk 0:00:03.6]} 60... Ka5 {[%clk 0:00:03.9]} 61. Qa3+ {[%clk
0:00:03.3]} 61... Kb6 {[%clk 0:00:04.4]} 62. Qd6+ {[%clk 0:00:03.3]} 62... Kb7
{[%clk 0:00:04.9]} 63. c8=Q+ {[%clk 0:00:02]} 63... Kxc8 {[%clk 0:00:05.3]} 64.
Qc5+ {[%clk 0:00:02.4]} 64... Kd8 {[%clk 0:00:05.8]} 65. Qd6+ {[%clk 0:00:02]}
65... Kc8 {[%clk 0:00:06.3]} 66. Qc5+ {[%clk 0:00:02.2]} 66... Kd8 {[%clk
0:00:04.8]} 67. Qd6+ {[%clk 0:00:01.9]} 67... Kc8 {[%clk 0:00:05.3]} 1/2-1/2

[Event "*** Titled Tuesday Blitz"]
[Site "Chess.com"]
[Date "2020.05.05"]
[Round "5"]
[White "Sanan_Sjugirov"]
[Black "MarcoRiehle"]
[Result "1-0"]
[WhiteElo "2857"]
[BlackElo "2615"]
[TimeControl "180+1"]
[EndTime "10:58:29 PDT"]
[Termination "Sanan_Sjugirov won by resignation"]

1. e4 {[%clk 0:03:00.9]} 1... e5 {[%clk 0:02:59.4]} 2. Nf3 {[%clk 0:03:00.7]}
2... Nf6 {[%clk 0:02:59.6]} 3. d4 {[%clk 0:02:59.9]} 3... Nxe4 {[%clk
0:02:58.9]} 4. Bd3 {[%clk 0:02:59.9]} 4... Nc6 {[%clk 0:02:59]} 5. dxe5 {[%clk
0:02:55.6]} 5... Nc5 {[%clk 0:02:56.8]} 6. Bc4 {[%clk 0:02:28.7]} 6... d6 {[%clk
0:02:56.4]} 7. Bg5 {[%clk 0:02:19.9]} 7... Qd7 {[%clk 0:02:38]} 8. Qe2 {[%clk
0:02:04.8]} 8... d5 {[%clk 0:02:24.8]} 9. Bb3 {[%clk 0:01:38.5]} 9... Nxb3
{[%clk 0:02:19.7]} 10. axb3 {[%clk 0:01:39.4]} 10... Qg4 {[%clk 0:02:14.9]} 11.
Nc3 {[%clk 0:01:26.7]} 11... Bb4 {[%clk 0:02:09.8]} 12. O-O {[%clk 0:01:19.8]}
12... Bxc3 {[%clk 0:02:07.1]} 13. bxc3 {[%clk 0:01:20.7]} 13... O-O {[%clk
0:02:03.8]} 14. Rfe1 {[%clk 0:01:13.1]} 14... Re8 {[%clk 0:01:58.2]} 15. Ra4
{[%clk 0:01:02.6]} 15... Qf5 {[%clk 0:01:48]} 16. Bc1 {[%clk 0:00:49.7]} 16...
Bd7 {[%clk 0:01:17.5]} 17. Rf4 {[%clk 0:00:49.1]} 17... Qe6 {[%clk 0:01:15.5]}
18. Qd1 {[%clk 0:00:36.7]} 18... Re7 {[%clk 0:01:05.8]} 19. h4 {[%clk
0:00:27.6]} 19... h6 {[%clk 0:00:59.5]} 20. h5 {[%clk 0:00:26.6]} 20... Rae8
{[%clk 0:00:51]} 21. Ba3 {[%clk 0:00:23.8]} 21... f6 {[%clk 0:00:27.8]} 22. Bxe7
{[%clk 0:00:21]} 22... Qxe7 {[%clk 0:00:21.7]} 23. exf6 {[%clk 0:00:19.4]} 23...
Qf7 {[%clk 0:00:22.1]} 24. Rxe8+ {[%clk 0:00:17.6]} 24... Bxe8 {[%clk 0:00:23]}
25. Rf5 {[%clk 0:00:11.2]} 25... Bd7 {[%clk 0:00:15.7]} 26. Rxd5 {[%clk
0:00:09.3]} 26... Be6 {[%clk 0:00:16.1]} 27. Rd2 {[%clk 0:00:05.6]} 27... Qxf6
{[%clk 0:00:16.2]} 28. Qe2 {[%clk 0:00:05.9]} 28... Bf7 {[%clk 0:00:15.7]} 29.
Qe3 {[%clk 0:00:05.6]} 29... Bxh5 {[%clk 0:00:12.4]} 30. Nd4 {[%clk 0:00:05.9]}
30... Ne5 {[%clk 0:00:11.2]} 31. f3 {[%clk 0:00:06.1]} 31... Bf7 {[%clk
0:00:10.4]} 32. Re2 {[%clk 0:00:06.5]} 32... Ng6 {[%clk 0:00:10.8]} 33. Qe4
{[%clk 0:00:05.9]} 33... c6 {[%clk 0:00:08.8]} 34. Qf5 {[%clk 0:00:05.7]} 34...
Qh4 {[%clk 0:00:08.6]} 35. Re4 {[%clk 0:00:04.8]} 35... Qg3 {[%clk 0:00:07.2]}
36. Qg4 {[%clk 0:00:05]} 36... Qc7 {[%clk 0:00:06.7]} 37. Nf5 {[%clk 0:00:05]}
37... Kh7 {[%clk 0:00:07.1]} 38. Re1 {[%clk 0:00:04.3]} 38... Qb6+ {[%clk
0:00:07]} 39. Qd4 {[%clk 0:00:04.6]} 39... Qxd4+ {[%clk 0:00:05.1]} 40. cxd4
{[%clk 0:00:05.5]} 40... Nf4 {[%clk 0:00:04]} 41. Nd6 {[%clk 0:00:06]} 41... Bd5
{[%clk 0:00:03.3]} 42. Kf2 {[%clk 0:00:05.8]} 42... Ne6 {[%clk 0:00:03]} 43. c4
{[%clk 0:00:05.9]} 43... Nxd4 {[%clk 0:00:03.4]} 44. cxd5 {[%clk 0:00:05.9]}
44... cxd5 {[%clk 0:00:04.1]} 45. Rd1 {[%clk 0:00:06.5]} 45... Nxb3 {[%clk
0:00:04.4]} 46. Rxd5 {[%clk 0:00:07.4]} 46... b6 {[%clk 0:00:05]} 47. Nb5 {[%clk
0:00:07.5]} 47... Na5 {[%clk 0:00:04.1]} 48. Nxa7 {[%clk 0:00:07.2]} 48... Nc4
{[%clk 0:00:04.3]} 49. Nb5 {[%clk 0:00:07.6]} 49... h5 {[%clk 0:00:03.9]} 50.
Nc3 {[%clk 0:00:07.9]} 50... Kh6 {[%clk 0:00:04.1]} 51. Rd4 {[%clk 0:00:08.8]}
51... Nb2 {[%clk 0:00:04.1]} 52. Rd6+ {[%clk 0:00:09.1]} 52... g6 {[%clk
0:00:03.9]} 53. Rxb6 {[%clk 0:00:10]} 53... Nd3+ {[%clk 0:00:04.4]} 54. Kg1
{[%clk 0:00:10.5]} 54... Nf4 {[%clk 0:00:05]} 55. Ne4 {[%clk 0:00:10.7]} 55...
h4 {[%clk 0:00:05.3]} 56. Kf2 {[%clk 0:00:11.2]} 56... Kh5 {[%clk 0:00:05.7]}
57. g3 {[%clk 0:00:11.6]} 57... hxg3+ {[%clk 0:00:05.6]} 58. Nxg3+ {[%clk
0:00:12.5]} 58... Kg5 {[%clk 0:00:05.3]} 59. Ne4+ {[%clk 0:00:13.3]} 59... Kh5
{[%clk 0:00:05.4]} 60. Rb5+ {[%clk 0:00:14.2]} 60... Kh6 {[%clk 0:00:05.4]} 61.
Rb8 {[%clk 0:00:14.8]} 61... Kg7 {[%clk 0:00:04.5]} 62. Kg3 {[%clk 0:00:15.7]}
62... Nd3 {[%clk 0:00:04]} 63. Kg4 {[%clk 0:00:16.6]} 63... Ne5+ {[%clk
0:00:04.3]} 64. Kf4 {[%clk 0:00:16.9]} 64... Nd3+ {[%clk 0:00:04.6]} 65. Kg5
{[%clk 0:00:17.1]} 65... Ne5 {[%clk 0:00:05.2]} 66. Rb7+ {[%clk 0:00:17.3]}
66... Kf8 {[%clk 0:00:05.7]} 67. Kf6 {[%clk 0:00:15.6]} 1-0

[Event "*** Titled Tuesday Blitz"]
[Site "Chess.com"]
[Date "2020.05.05"]
[Round "5"]
[White "FM_VS99"]
[Black "viktorskliarov"]
[Result "1/2-1/2"]
[WhiteElo "2318"]
[BlackElo "2573"]
[TimeControl "180+1"]
[EndTime "10:58:30 PDT"]
[Termination "Game drawn - insufficient material"]

1. c4 {[%clk 0:03:00.9]} 1... e5 {[%clk 0:02:59.4]} 2. g3 {[%clk 0:03:00.7]}
2... Nf6 {[%clk 0:02:59.2]} 3. Bg2 {[%clk 0:03:01.2]} 3... c6 {[%clk 0:02:59.5]}
4. d4 {[%clk 0:03:00.7]} 4... exd4 {[%clk 0:02:59.3]} 5. Qxd4 {[%clk 0:03:00.5]}
5... Na6 {[%clk 0:02:59.9]} 6. Nf3 {[%clk 0:02:56.3]} 6... Bc5 {[%clk
0:02:59.2]} 7. Qe5+ {[%clk 0:02:56.1]} 7... Be7 {[%clk 0:02:58.4]} 8. O-O {[%clk
0:02:55]} 8... O-O {[%clk 0:02:57.8]} 9. Nc3 {[%clk 0:02:54.2]} 9... Re8 {[%clk
0:02:53.5]} 10. Qd4 {[%clk 0:02:50.8]} 10... Nb4 {[%clk 0:02:46.6]} 11. Qd1
{[%clk 0:02:45.7]} 11... d5 {[%clk 0:02:41.5]} 12. a3 {[%clk 0:02:43.4]} 12...
Na6 {[%clk 0:02:40.1]} 13. cxd5 {[%clk 0:02:42.1]} 13... cxd5 {[%clk 0:02:38.1]}
14. Be3 {[%clk 0:02:40.2]} 14... Nc5 {[%clk 0:02:33.1]} 15. Bd4 {[%clk
0:02:35.5]} 15... Nce4 {[%clk 0:02:29.4]} 16. Ne5 {[%clk 0:02:30.5]} 16... Nxc3
{[%clk 0:02:13.4]} 17. Bxc3 {[%clk 0:02:29]} 17... Be6 {[%clk 0:02:11.1]} 18.
Qd4 {[%clk 0:02:24.8]} 18... b6 {[%clk 0:01:58.4]} 19. Bb4 {[%clk 0:02:12.2]}
19... Rc8 {[%clk 0:01:52.1]} 20. Bxe7 {[%clk 0:02:10.6]} 20... Rxe7 {[%clk
0:01:49.8]} 21. Rac1 {[%clk 0:02:07.5]} 21... Rec7 {[%clk 0:01:49.2]} 22. Qd2
{[%clk 0:02:06.6]} 22... h6 {[%clk 0:01:45.9]} 23. Rfd1 {[%clk 0:02:04.9]} 23...
Qe7 {[%clk 0:01:35.8]} 24. Nd3 {[%clk 0:01:44.6]} 24... Bf5 {[%clk 0:01:15.3]}
25. Nb4 {[%clk 0:01:11.8]} 25... Rxc1 {[%clk 0:01:07.2]} 26. Rxc1 {[%clk
0:01:09.1]} 26... Rxc1+ {[%clk 0:01:06.9]} 27. Qxc1 {[%clk 0:01:08.8]} 27...
Qxe2 {[%clk 0:01:06.7]} 28. Nxd5 {[%clk 0:01:08.4]} 28... Ng4 {[%clk 0:00:43.8]}
29. Qf4 {[%clk 0:00:19.5]} 29... Qe1+ {[%clk 0:00:42.1]} 30. Bf1 {[%clk
0:00:18.8]} 30... Bd3 {[%clk 0:00:42.5]} 31. Ne3 {[%clk 0:00:18.8]} 31... Nxe3
{[%clk 0:00:40.7]} 32. fxe3 {[%clk 0:00:18.3]} 32... Bxf1 {[%clk 0:00:41.3]} 33.
Qxf1 {[%clk 0:00:18.6]} 33... Qxe3+ {[%clk 0:00:41.6]} 34. Kg2 {[%clk
0:00:19.1]} 34... Qd4 {[%clk 0:00:39.3]} 35. Qe2 {[%clk 0:00:18.1]} 35... g6
{[%clk 0:00:39.6]} 36. Qc2 {[%clk 0:00:16.1]} 36... h5 {[%clk 0:00:38.6]} 37. h3
{[%clk 0:00:15.3]} 37... h4 {[%clk 0:00:37.5]} 38. gxh4 {[%clk 0:00:13.2]} 38...
Qxh4 {[%clk 0:00:36.5]} 39. Qc7 {[%clk 0:00:12.4]} 39... Qg5+ {[%clk 0:00:29.5]}
40. Kf3 {[%clk 0:00:10.7]} 40... Qf6+ {[%clk 0:00:28.2]} 41. Kg3 {[%clk
0:00:11]} 41... Qxb2 {[%clk 0:00:26.5]} 42. Qxa7 {[%clk 0:00:10.1]} 42... Kg7
{[%clk 0:00:25.2]} 43. Qa4 {[%clk 0:00:09.3]} 43... Qc3+ {[%clk 0:00:24.1]} 44.
Kg2 {[%clk 0:00:08.8]} 44... g5 {[%clk 0:00:24.3]} 45. Qb5 {[%clk 0:00:08.7]}
45... f6 {[%clk 0:00:17.2]} 46. Qxb6 {[%clk 0:00:08.8]} 46... Qxa3 {[%clk
0:00:17.2]} 47. Qc7+ {[%clk 0:00:09.3]} 47... Kg6 {[%clk 0:00:17.3]} 48. Qc2+
{[%clk 0:00:09.7]} 48... Kf7 {[%clk 0:00:17.4]} 49. Qh7+ {[%clk 0:00:09.6]}
49... Ke6 {[%clk 0:00:17.1]} 50. Qg8+ {[%clk 0:00:09.9]} 50... Kf5 {[%clk
0:00:16.3]} 51. Qc8+ {[%clk 0:00:09.7]} 51... Ke5 {[%clk 0:00:15.4]} 52. Qe8+
{[%clk 0:00:08.9]} 52... Kf4 {[%clk 0:00:13.2]} 53. Qb8+ {[%clk 0:00:08.8]}
53... Ke4 {[%clk 0:00:11.7]} 54. Qb7+ {[%clk 0:00:09.1]} 54... Ke3 {[%clk
0:00:10.8]} 55. Qb6+ {[%clk 0:00:08.1]} 55... Ke2 {[%clk 0:00:09.8]} 56. Qxf6
{[%clk 0:00:08]} 56... Qa8+ {[%clk 0:00:09.8]} 57. Kg3 {[%clk 0:00:08.3]} 57...
Qa3+ {[%clk 0:00:09.7]} 58. Kg4 {[%clk 0:00:08.5]} 58... Qb4+ {[%clk 0:00:06.2]}
59. Kxg5 {[%clk 0:00:08.2]} 59... Qd2+ {[%clk 0:00:06.3]} 60. Qf4 {[%clk
0:00:08]} 60... Qd8+ {[%clk 0:00:05.2]} 61. Qf6 {[%clk 0:00:07.9]} 61... Qg8+
{[%clk 0:00:05.2]} 62. Qg6 {[%clk 0:00:08.1]} 62... Qd8+ {[%clk 0:00:05.2]} 63.
Qf6 {[%clk 0:00:07.6]} 63... Qg8+ {[%clk 0:00:05.1]} 64. Kf5 {[%clk 0:00:08.1]}
64... Qh7+ {[%clk 0:00:04.8]} 65. Qg6 {[%clk 0:00:08.5]} 65... Qxh3+ {[%clk
0:00:04.6]} 66. Qg4+ {[%clk 0:00:08.5]} 66... Qxg4+ {[%clk 0:00:04.9]} 67. Kxg4
{[%clk 0:00:09.4]} 1/2-1/2

[Event "*** Titled Tuesday Blitz"]
[Site "Chess.com"]
[Date "2020.05.05"]
[Round "5"]
[White "OK97"]
[Black "Happy1712Drummer"]
[Result "1-0"]
[WhiteElo "2723"]
[BlackElo "2539"]
[TimeControl "180+1"]
[EndTime "10:58:35 PDT"]
[Termination "OK97 won by resignation"]

1. e4 {[%clk 0:03:00.9]} 1... e6 {[%clk 0:02:57.1]} 2. d4 {[%clk 0:03:00.3]}
2... d5 {[%clk 0:02:58]} 3. Nc3 {[%clk 0:03:00.5]} 3... Bb4 {[%clk 0:02:56.6]}
4. Bd3 {[%clk 0:03:00.6]} 4... c5 {[%clk 0:02:42.6]} 5. exd5 {[%clk 0:02:50.5]}
5... exd5 {[%clk 0:02:30.9]} 6. dxc5 {[%clk 0:02:48.3]} 6... Nf6 {[%clk
0:02:22.4]} 7. Ne2 {[%clk 0:02:45.3]} 7... O-O {[%clk 0:02:18.3]} 8. O-O {[%clk
0:02:45.5]} 8... Bxc5 {[%clk 0:02:17.6]} 9. Bg5 {[%clk 0:02:45.6]} 9... Be6
{[%clk 0:02:00.6]} 10. Nf4 {[%clk 0:02:43.2]} 10... Nc6 {[%clk 0:01:55.4]} 11.
Ncxd5 {[%clk 0:02:08.5]} 11... Bxd5 {[%clk 0:01:51.4]} 12. Nxd5 {[%clk
0:02:05.6]} 12... Qxd5 {[%clk 0:01:38]} 13. Bxf6 {[%clk 0:02:05.7]} 13... Qe6
{[%clk 0:01:05.9]} 14. Qh5 {[%clk 0:01:48]} 14... g6 {[%clk 0:00:55.2]} 15. Qh4
{[%clk 0:01:44.6]} 15... Rfe8 {[%clk 0:00:34.3]} 16. Bc3 {[%clk 0:01:30.7]}
16... Bf8 {[%clk 0:00:29.3]} 17. Rfe1 {[%clk 0:01:29.1]} 17... Qd6 {[%clk
0:00:22.4]} 18. Rad1 {[%clk 0:01:24.4]} 18... Rxe1+ {[%clk 0:00:19.7]} 19. Rxe1
{[%clk 0:01:24.5]} 19... Rd8 {[%clk 0:00:17.3]} 20. h3 {[%clk 0:01:17.2]} 20...
Bg7 {[%clk 0:00:17.3]} 21. Bxg7 {[%clk 0:01:12.3]} 21... Kxg7 {[%clk 0:00:18.2]}
22. a3 {[%clk 0:01:06.9]} 22... Qf6 {[%clk 0:00:18.4]} 23. Qxf6+ {[%clk
0:01:02.5]} 23... Kxf6 {[%clk 0:00:19.3]} 24. f4 {[%clk 0:00:55.7]} 24... h5
{[%clk 0:00:18.3]} 25. g4 {[%clk 0:00:52.7]} 25... hxg4 {[%clk 0:00:16.5]} 26.
hxg4 {[%clk 0:00:53.6]} 26... Nd4 {[%clk 0:00:16.9]} 27. g5+ {[%clk 0:00:51.5]}
27... Kg7 {[%clk 0:00:16.7]} 28. Re7 {[%clk 0:00:51.5]} 28... Rc8 {[%clk
0:00:15.5]} 29. c3 {[%clk 0:00:42.5]} 29... Ne6 {[%clk 0:00:15.2]} 30. f5 {[%clk
0:00:35.4]} 30... Nxg5 {[%clk 0:00:10.6]} 31. fxg6 {[%clk 0:00:33.2]} 31... Kf6
{[%clk 0:00:11.3]} 32. Rxb7 {[%clk 0:00:33.1]} 32... fxg6 {[%clk 0:00:11.8]} 33.
Rxa7 {[%clk 0:00:33.1]} 33... Nf3+ {[%clk 0:00:12.4]} 34. Kf2 {[%clk 0:00:33.1]}
34... Ne5 {[%clk 0:00:13]} 35. Be2 {[%clk 0:00:32.9]} 35... Rh8 {[%clk
0:00:12.6]} 36. a4 {[%clk 0:00:29.1]} 36... Kg5 {[%clk 0:00:12.5]} 37. a5 {[%clk
0:00:28.8]} 37... Kf4 {[%clk 0:00:12.1]} 38. Re7 {[%clk 0:00:21.5]} 38... Rh2+
{[%clk 0:00:11.7]} 39. Ke1 {[%clk 0:00:21.5]} 39... g5 {[%clk 0:00:12.6]} 40. a6
{[%clk 0:00:20.9]} 40... g4 {[%clk 0:00:12.8]} 41. a7 {[%clk 0:00:20.2]} 41...
Rh8 {[%clk 0:00:11.3]} 42. Bxg4 {[%clk 0:00:17.8]} 42... Nxg4 {[%clk 0:00:10.2]}
43. b4 {[%clk 0:00:17.7]} 43... Ne5 {[%clk 0:00:10.7]} 44. b5 {[%clk 0:00:16.3]}
44... Nc4 {[%clk 0:00:09.9]} 45. Rb7 {[%clk 0:00:12.5]} 45... Ke3 {[%clk
0:00:09.4]} 46. Re7+ {[%clk 0:00:12]} 46... Kd3 {[%clk 0:00:09.1]} 47. Rc7
{[%clk 0:00:10.6]} 47... Ke3 {[%clk 0:00:08.1]} 48. Kf1 {[%clk 0:00:05.7]} 48...
Kf3 {[%clk 0:00:08.1]} 49. Rf7+ {[%clk 0:00:05.2]} 49... Ke3 {[%clk 0:00:08]}
50. Kg2 {[%clk 0:00:05.4]} 50... Kd3 {[%clk 0:00:08.2]} 51. Rc7 {[%clk 0:00:05]}
51... Ra8 {[%clk 0:00:07.6]} 52. Rxc4 {[%clk 0:00:04.1]} 52... Kxc4 {[%clk
0:00:07.1]} 53. b6 {[%clk 0:00:05]} 53... Rg8+ {[%clk 0:00:06.8]} 54. Kf3 {[%clk
0:00:04.4]} 54... Rf8+ {[%clk 0:00:06.9]} 55. Ke4 {[%clk 0:00:04.7]} 55... Re8+
{[%clk 0:00:07]} 56. Kf5 {[%clk 0:00:05.1]} 56... Rf8+ {[%clk 0:00:06.9]} 57.
Ke6 {[%clk 0:00:05.5]} 57... Rg8 {[%clk 0:00:03.4]} 58. b7 {[%clk 0:00:05]}
58... Rg6+ {[%clk 0:00:03.1]} 59. Kf5 {[%clk 0:00:05.4]} 59... Ra6 {[%clk
0:00:03.8]} 60. b8=Q {[%clk 0:00:05.6]} 60... Ra5+ {[%clk 0:00:04.3]} 61. Ke6
{[%clk 0:00:05.5]} 61... Rd5 {[%clk 0:00:03.5]} 62. a8=Q {[%clk 0:00:05.4]}
62... Rc5 {[%clk 0:00:04.4]} 63. Qc8 {[%clk 0:00:04.8]} 63... Kd3 {[%clk
0:00:05.1]} 64. Qxc5 {[%clk 0:00:04.9]} 64... Kc2 {[%clk 0:00:05.8]} 65. c4
{[%clk 0:00:05.5]} 65... Kc3 {[%clk 0:00:05.6]} 66. Qcc6 {[%clk 0:00:06.1]} 1-0